bitfinex-derivatives/quotes_ETHF0:USTF0_20260116
["timestamp","ask_amount","ask_price","bid_price","bid_amount"]
[1768583198713,3.25980301,3275.7,3274.0,3.41522706]
[1768583199312,0.92182883,3275.6,3274.0,3.41811684]
[1768583199611,3.25980301,3275.7,3274.0,3.41811684]
[1768583199815,0.92181091,3275.6,3274.0,3.41811684]
[1768583200011,1.725,3276.0,3274.0,3.41811684]
[1768583200213,0.92181028,3275.9,3274.0,3.41811684]
[1768583200415,0.92181028,3275.8,3274.0,3.41811684]
[1768583200609,0.92181028,3275.7,3274.0,3.41811684]
[1768583200812,0.92181028,3275.6,3274.0,3.41811684]
[1768583201010,0.92181028,3275.5,3274.0,3.41811684]
[1768583201214,0.92358462,3275.4,3274.0,3.41811684]
[1768583201404,3.25980301,3275.9,3274.0,3.41811684]
[1768583201605,0.9235989,3275.8,3274.0,3.41811684]
[1768583201918,0.9235989,3275.7,3274.0,3.41811684]
[1768583202116,0.9235989,3275.6,3274.0,3.41811684]
[1768583202416,0.9235989,3275.5,3274.0,3.41811684]
[1768583202713,0.9235989,3275.4,3274.0,3.41811684]
[1768583202916,0.9235989,3275.3,3274.0,3.41811684]
[1768583203121,3.25980301,3275.9,3274.0,3.41811684]
[1768583203304,0.92416219,3275.8,3274.0,3.41811684]
[1768583203506,0.92416219,3275.7,3274.0,3.41811684]
[1768583203811,0.92416219,3275.6,3274.0,3.26534684]
[1768583204012,0.92416219,3275.5,3274.0,3.26534684]
[1768583204208,0.15268,3275.9,3272.7,7.07488824]
[1768583204209,3.25980301,3274.8,3272.7,7.07488824]
[1768583204405,3.25980301,3274.6,3272.9,3.26245706]
[1768583204609,2.34512857,3275.5,3273.1,3.26245706]
[1768583204809,5.70416789,3275.4,3273.1,3.26245706]
[1768583205014,0.92416789,3275.3,3273.4,3.26245706]
[1768583205420,3.25980301,3275.1,3273.4,0.0021386]
[1768583205612,3.25980301,3274.9,3273.4,0.0021386]
[1768583205813,4.1839709,3274.8,3273.4,0.0021386]
[1768583206120,0.92416789,3274.7,3273.4,0.0021386]
[1768583206317,0.15272,3275.1,3272.7,0.15283]
[1768583206318,4.1839709,3274.6,3272.7,0.15283]
[1768583206521,0.00227598,3275.3,3272.3,3.26245706]
[1768583206522,3.25980301,3274.4,3272.3,3.26245706]
[1768583206716,2.64916789,3274.3,3272.3,3.26245706]
[1768583207021,4.1839709,3274.2,3272.4,3.26245706]
[1768583207218,0.92416789,3274.1,3272.4,3.42140706]
[1768583207519,3.25980301,3274.2,3272.6,0.00611]
[1768583207710,0.92234914,3274.1,3272.6,0.00611]
[1768583207917,4.98480301,3274.2,3272.7,0.00611]
[1768583208115,0.92239325,3274.1,3272.6,0.00611]
[1768583208321,4.98480301,3274.2,3272.6,0.00611]
[1768583208520,0.92184128,3274.1,3272.7,0.00611]
[1768583208722,4.98480301,3274.2,3272.6,0.00611]
[1768583209022,0.92183215,3274.1,3272.6,0.00611]
[1768583209326,4.98480301,3274.2,3272.7,0.00611]
[1768583209616,4.98480301,3274.2,3272.6,0.00611]
[1768583209819,4.98480301,3274.2,3272.4,3.41828182]
[1768583210023,4.98480301,3274.2,3272.6,0.00611]
[1768583210227,1.725,3274.2,3272.6,3.26245706]
[1768583210428,1.725,3274.2,3272.8,0.00611]
[1768583210718,3.25980301,3274.1,3272.4,0.15582476]
[1768583210929,3.25980301,3274.1,3272.6,0.00611]
[1768583211114,1.725,3274.2,3272.4,3.41828182]
[1768583211310,1.725,3274.2,3272.8,3.33810494]
[1768583211825,1.725,3274.2,3272.9,0.00611]
[1768583212225,1.725,3274.2,3272.8,3.33810494]
[1768583212421,1.725,3274.2,3272.9,0.00611]
[1768583212926,5.34210328,3274.2,3272.4,3.4939297]
[1768583213121,3.61710328,3274.1,3272.6,0.00611]
[1768583213316,3.61710328,3274.1,3272.5,0.00611]
[1768583213517,3.61710328,3274.1,3272.4,0.15582476]
[1768583213923,3.61710328,3274.1,3272.4,0.00298476]
[1768583214120,3.61710328,3273.9,3272.4,0.00298476]
[1768583214829,1.725,3273.8,3272.4,0.00298476]
[1768583215423,1.725,3273.8,3272.4,0.00909476]
[1768583216131,5.34210328,3273.8,3272.4,0.00909476]
[1768583216334,3.61710328,3273.7,3272.4,0.00298476]
[1768583218427,5.34210328,3273.6,3272.4,0.00298476]
[1768583219822,1.725,3273.7,3272.6,0.00611]
[1768583220018,3.056,3274.4,3272.5,3.33810494]
[1768583220325,2.6407018,3274.3,3272.8,3.33810494]
[1768583220633,0.9157018,3274.2,3272.8,3.33810494]
[1768583220930,3.61710328,3274.8,3273.1,3.34421494]
[1768583221128,2.64085236,3274.7,3273.1,3.33810494]
[1768583221330,0.91585236,3274.6,3273.1,3.33810494]
[1768583221632,1.725,3274.7,3273.2,0.00611]
[1768583222129,1.725,3274.7,3273.3,0.00611]
[1768583222331,1.725,3274.7,3273.2,0.00611]
[1768583222332,0.91656481,3274.6,3273.2,0.00611]
[1768583222533,1.725,3274.7,3273.2,0.00611]
[1768583222728,3.77208926,3275.3,3273.1,3.49091494]
[1768583223033,5.69768065,3275.2,3273.4,3.33810494]
[1768583223331,0.91668065,3275.1,3273.4,3.33810494]
[1768583223722,4.53378393,3275.1,3273.4,3.34421494]
[1768583223925,0.91668065,3275.0,3273.4,3.34421494]
[1768583224120,4.53378393,3275.0,3273.4,3.34421494]
[1768583224429,0.91668065,3274.9,3273.5,0.00611]
[1768583224830,0.91668065,3274.9,3273.6,0.00611]
[1768583225134,0.91668065,3274.9,3273.5,0.00611]
[1768583225335,0.91668065,3274.9,3273.6,0.00611]
[1768583225535,1.725,3274.8,3273.5,0.00611]
[1768583225928,1.725,3274.8,3273.6,0.00611]
[1768583226224,0.91925705,3274.7,3273.4,0.00611]
[1768583226431,5.34210328,3274.8,3273.4,0.00611]
[1768583226637,3.61710328,3274.6,3272.9,3.33810494]
[1768583226834,4.53639842,3274.5,3272.9,0.00611]
[1768583227137,3.61710328,3274.5,3272.9,0.00611]
[1768583227435,0.91978429,3274.4,3273.0,0.00611]
[1768583227733,3.61710328,3274.5,3272.9,0.00611]
[1768583227935,0.91997459,3274.4,3272.9,0.00611]
[1768583228134,3.61710328,3274.5,3273.0,0.00611]
[1768583228331,0.92053781,3274.4,3272.9,0.00611]
[1768583228532,3.61710328,3274.5,3272.9,0.00611]
[1768583228533,0.92053781,3274.3,3272.9,0.00611]
[1768583228837,0.92053781,3274.2,3273.0,0.00611]
[1768583229036,3.61710328,3274.1,3272.4,0.00298476]
[1768583229334,4.53764109,3274.0,3272.4,0.00298476]
[1768583229536,2.64469396,3273.9,3272.7,0.00611]
[1768583229732,1.725,3273.9,3272.7,0.00611]
[1768583230037,3.61710328,3274.0,3272.9,0.00611]
[1768583230229,1.725,3274.0,3272.7,0.00611]
[1768583230626,1.725,3274.0,3272.4,3.3410897]
[1768583230828,1.725,3274.0,3272.7,0.00611]
[1768583231038,0.15275,3274.4,3272.7,0.00611]
[1768583231238,2.64500578,3274.3,3273.0,0.00611]
[1768583231427,0.92000578,3274.2,3273.2,0.00611]
[1768583231830,0.92000578,3274.2,3272.6,0.15283]
[1768583232137,4.53710906,3274.2,3272.6,0.15778106]
[1768583232437,0.92000578,3274.1,3272.6,0.15778106]
[1768583232939,4.53710906,3274.1,3272.7,0.00495106]
[1768583233133,3.61710328,3273.9,3272.6,0.00495106]
[1768583233330,0.92000578,3273.8,3272.4,0.00298476]
[1768583233530,0.92000578,3273.8,3272.6,0.00495106]
[1768583233734,0.92000578,3273.8,3272.7,0.00495106]
[1768583234244,0.92000578,3273.8,3272.8,0.00495106]
[1768583234439,0.92000578,3273.8,3272.6,3.33810494]
[1768583234739,1.725,3274.1,3273.0,0.00495106]
[1768583234939,0.9212169,3274.0,3272.8,3.33810494]
[1768583235138,1.725,3274.2,3272.8,3.33810494]
[1768583235338,0.92163191,3274.1,3273.1,0.00495106]
[1768583235639,0.92163191,3274.0,3273.1,0.00495106]
[1768583235835,1.725,3274.2,3273.3,0.00495106]
[1768583236143,0.92163652,3274.1,3273.2,0.00495106]
[1768583236340,0.92163652,3274.0,3273.2,0.00495106]
[1768583236542,0.92163652,3274.0,3272.4,0.00298476]
[1768583236543,1.725,3274.8,3273.5,0.00495106]
[1768583236743,1.725,3274.8,3273.1,3.49091494]
[1768583236744,0.9217288,3274.7,3273.1,3.495866]
[1768583236942,0.9217288,3274.6,3273.4,0.00495106]
[1768583237134,0.9217288,3274.5,3273.4,0.00495106]
[1768583237335,0.9217288,3274.4,3273.6,0.00495106]
[1768583237534,1.725,3274.8,3273.4,0.00495106]
[1768583237730,0.92202745,3274.7,3273.5,3.33810494]
[1768583237936,1.725,3275.0,3273.5,3.49089494]
[1768583238135,0.92214452,3274.9,3273.5,0.15279]
[1768583238343,0.92214452,3274.8,3273.7,0.00495106]
[1768583238542,0.92214452,3274.7,3273.7,0.00495106]
[1768583238740,0.00227598,3275.3,3273.5,3.49089494]
[1768583238943,2.64639853,3275.2,3273.7,0.00495106]
[1768583239144,2.64639853,3275.1,3273.7,0.00495106]
[1768583239449,0.92139853,3275.0,3273.9,3.33810494]
[1768583239656,0.00227598,3275.3,3273.9,3.33810494]
[1768583239852,0.92123806,3275.2,3274.4,0.00495106]
[1768583240041,0.00227598,3275.3,3274.6,0.00495106]
[1768583240438,0.00227598,3275.3,3275.0,0.00495106]
[1768583240639,0.00227598,3275.3,3275.0,0.00331009]
[1768583240839,0.00227598,3275.3,3275.2,0.00495106]
[1768583241645,3.43391985,3276.0,3275.0,0.00331009]
[1768583241956,0.92032593,3275.9,3275.0,0.00331009]
[1768583242158,1.725,3276.0,3275.0,0.00331009]
[1768583242546,0.00351379,3276.0,3275.0,0.00331009]
[1768583243562,3.43391985,3275.8,3274.0,3.38338304]
[1768583243863,3.43391985,3275.8,3273.8,0.15277]
[1768583244361,3.43391985,3275.6,3273.8,0.15277]
[1768583244563,3.43391985,3275.6,3273.8,0.15571068]
[1768583245755,0.15618379,3276.0,3273.9,3.53615304]
[1768583245956,2.64362761,3275.9,3274.0,0.15277]
[1768583246155,0.91862761,3275.8,3274.3,3.38338304]
[1768583246356,0.00351379,3276.0,3274.3,3.38338304]
[1768583246560,0.00351379,3276.0,3273.8,0.00294068]
[1768583246561,3.43391985,3275.8,3273.8,3.38632372]
[1768583247466,3.43391985,3275.8,3274.1,3.38338304]
[1768583247766,0.00351379,3276.0,3274.1,3.38338304]
[1768583247960,0.91816314,3275.9,3274.1,3.38338304]
[1768583248160,0.00351379,3276.0,3274.1,3.38338304]
[1768583248360,0.91819181,3275.9,3274.1,3.38338304]
[1768583248560,0.91837203,3275.8,3274.1,3.38338304]
[1768583248765,0.00351379,3276.0,3274.1,3.38338304]
[1768583248966,0.91861734,3275.9,3274.1,3.38338304]
[1768583249165,0.00351379,3276.0,3274.1,3.38338304]
[1768583249368,0.91874105,3275.9,3274.1,3.53614304]
[1768583249564,1.725,3275.9,3274.1,3.53614304]
[1768583250569,5.02166153,3275.9,3274.1,3.53614304]
[1768583250760,3.29666153,3275.8,3274.1,3.53614304]
[1768583250961,3.29666153,3275.8,3273.8,0.00294068]
[1768583251261,3.29666153,3275.6,3273.8,0.00294068]
[1768583251461,3.29666153,3275.5,3273.8,0.00294068]
[1768583253369,3.29666153,3275.5,3273.8,3.30199993]
[1768583255269,0.15268,3275.9,3273.8,3.45476993]
[1768583255473,2.64332054,3275.8,3274.0,3.29905925]
[1768583255773,0.91932054,3275.7,3274.0,3.45182925]
[1768583255962,1.724,3275.9,3274.0,3.45182925]
[1768583256163,0.91891024,3275.8,3274.0,3.45182925]
[1768583256359,3.30017532,3276.0,3274.2,3.29905925]
[1768583256572,0.00351379,3276.0,3274.6,3.29905925]
[1768583256964,0.00351379,3276.0,3274.6,3.45179925]
[1768583257774,0.00351379,3276.0,3274.8,3.29905925]
[1768583258166,0.00351379,3276.0,3275.0,0.15272]
[1768583258475,0.00351379,3276.0,3275.0,40.95272]
[1768583260571,0.00351379,3276.0,3275.0,3.45177925]
[1768583260773,0.00351379,3276.0,3275.1,3.45177925]
[1768583261367,1.724,3276.9,3275.1,3.45177925]
[1768583261567,0.91879938,3276.8,3275.1,3.45177925]
[1768583261769,1.724,3276.9,3275.1,3.45177925]
[1768583262476,0.91886337,3276.8,3275.1,3.45177925]
[1768583262678,1.72753722,3276.9,3275.1,3.45177925]
[1768583262879,0.91886424,3276.8,3275.1,3.45177925]
[1768583263074,1.72753722,3276.9,3275.1,3.45177925]
[1768583263277,0.91910434,3276.8,3275.1,3.45177925]
[1768583263478,1.72753722,3276.9,3275.1,3.45177925]
[1768583263780,0.92144086,3276.8,3275.1,3.45177925]
[1768583263980,1.72753722,3276.9,3275.1,3.45177925]
[1768583264181,0.92144452,3276.8,3275.1,3.45177925]
[1768583264383,0.92144452,3276.7,3275.1,3.45177925]
[1768583264682,0.00353722,3276.9,3275.1,3.45177925]
[1768583264871,0.92184805,3276.8,3275.1,3.45177925]
[1768583265073,0.92184805,3276.7,3275.1,3.45177925]
[1768583265273,0.00353722,3276.9,3275.2,3.29905925]
[1768583265474,0.92223103,3276.8,3275.2,3.29905925]
[1768583265682,0.92223103,3276.7,3275.2,3.29905925]
[1768583265879,0.00353722,3276.9,3275.2,3.29905925]
[1768583266180,0.92240921,3276.8,3275.2,3.29905925]
[1768583266380,0.92240921,3276.7,3275.2,3.29905925]
[1768583266581,0.92240921,3276.6,3275.2,3.29905925]
[1768583266782,0.00353722,3276.9,3275.2,3.29905925]
[1768583267085,0.9223948,3276.8,3275.3,3.45175925]
[1768583267273,0.00353722,3276.9,3275.3,3.45175925]
[1768583267584,0.00353722,3276.9,3275.5,3.45174925]
[1768583267780,0.00353722,3276.9,3275.7,3.29905925]
[1768583267976,0.00353722,3276.9,3275.7,7.29405925]
[1768583268174,0.00353722,3276.9,3275.8,3.29905925]
[1768583272086,0.00353722,3276.9,3275.8,7.30005925]
[1768583272286,0.00353722,3276.9,3275.3,3.61172832]
[1768583272482,3.34366526,3276.9,3275.3,3.61172832]
[1768583272679,3.34366526,3276.9,3275.2,4.002]
[1768583274788,3.34366526,3276.9,3275.1,44.41172832]
[1768583274983,0.92121905,3276.8,3275.1,48.41772832]
[1768583275184,3.34366526,3276.9,3275.1,48.41772832]
[1768583275484,0.9213204,3276.8,3275.1,48.41772832]
[1768583275685,3.34366526,3276.9,3275.1,48.41772832]
[1768583275887,0.92132318,3276.8,3275.1,7.61772832]
[1768583276087,3.34366526,3276.9,3275.1,3.61172832]
[1768583276287,0.92142338,3276.8,3275.1,3.61172832]
[1768583276486,3.34366526,3276.9,3275.1,3.61172832]
[1768583276791,0.92144177,3276.8,3275.1,3.61172832]
[1768583277090,3.34366526,3276.9,3275.1,3.61172832]
[1768583277283,0.92163808,3276.8,3275.1,3.61172832]
[1768583277482,3.34366526,3276.9,3275.1,3.61172832]
[1768583277682,0.92161126,3276.8,3275.1,3.61172832]
[1768583277986,3.34366526,3276.9,3275.1,3.61172832]
[1768583278176,4.26175386,3276.8,3275.1,3.61172832]
[1768583278375,3.34012804,3276.8,3275.1,3.61172832]
[1768583279491,0.00353722,3276.9,3275.4,3.61172832]
[1768583279990,0.00353722,3276.9,3275.4,3.76442832]
[1768583280494,0.00353722,3276.9,3275.4,3.61172832]
[1768583280791,0.00353722,3276.9,3275.8,3.61172832]
[1768583281389,0.00353722,3276.9,3275.7,0.15269]
[1768583281687,0.00353722,3276.9,3275.3,3.61172832]
[1768583283294,0.92240745,3276.8,3275.3,3.61172832]
[1768583283479,3.34366526,3276.9,3275.3,3.61172832]
[1768583283684,3.34366526,3276.9,3275.2,4.17071]
[1768583283685,0.9224969,3276.8,3275.2,4.17071]
[1768583283894,0.92256019,3276.7,3275.2,4.17071]
[1768583284094,0.00353722,3276.9,3275.2,7.78243832]
[1768583284294,0.92308799,3276.8,3275.3,3.76443832]
[1768583284587,0.92308799,3276.7,3275.3,3.76443832]
[1768583284793,0.00353722,3276.9,3275.3,3.76443832]
[1768583284996,0.92316351,3276.8,3275.3,3.76443832]
[1768583285189,0.92375972,3276.7,3275.3,3.76443832]
[1768583285390,0.00353722,3276.9,3275.4,3.76442832]
[1768583285598,0.00353722,3276.9,3275.8,3.61172832]
[1768583286586,0.00353722,3276.9,3275.9,7.63272832]
[1768583286787,0.00353722,3276.9,3276.0,3.61172832]
[1768583288394,0.006102,3277.4,3276.0,3.61172832]
[1768583288595,0.92507152,3277.3,3276.0,3.61172832]
[1768583288797,0.92507152,3277.2,3276.0,3.61172832]
[1768583288996,0.92507152,3277.1,3276.0,3.61172832]
[1768583289197,0.006102,3277.4,3276.0,3.61172832]
[1768583289398,0.92513677,3277.3,3276.0,3.61172832]
[1768583289589,0.92513677,3277.2,3276.0,3.61172832]
[1768583289789,0.92513677,3277.1,3276.0,3.61172832]
[1768583289996,0.00993734,3277.4,3276.0,3.61172832]
[1768583290196,0.92522037,3277.3,3276.0,3.61172832]
[1768583290391,0.92522037,3277.2,3276.0,3.61172832]
[1768583290592,0.92522037,3277.1,3276.0,3.61172832]
[1768583290799,0.00993734,3277.4,3276.0,3.61172832]
[1768583290989,0.92518037,3277.3,3276.0,3.61172832]
[1768583291190,0.92518037,3277.2,3276.0,3.61172832]
[1768583291488,0.92518037,3277.1,3276.0,3.61172832]
[1768583291699,0.00993734,3277.4,3276.0,3.61172832]
[1768583291899,0.92514346,3277.3,3276.0,3.61172832]
[1768583292096,0.00993734,3277.4,3276.0,3.61172832]
[1768583292097,0.92514346,3277.2,3276.0,3.61172832]
[1768583292293,0.00993734,3277.4,3276.0,3.61172832]
[1768583292494,0.92510119,3277.3,3276.0,3.61172832]
[1768583292798,0.92510119,3277.2,3276.0,3.61172832]
[1768583292996,0.00993734,3277.4,3276.0,3.61172832]
[1768583293196,0.9251001,3277.3,3276.0,3.61172832]
[1768583293396,0.9251001,3277.2,3276.0,3.61172832]
[1768583293595,0.00993734,3277.4,3276.0,3.61172832]
[1768583293795,0.92405288,3277.3,3276.0,3.61172832]
[1768583293997,0.92405288,3277.2,3276.0,3.61172832]
[1768583294200,0.00993734,3277.4,3276.0,3.61172832]
[1768583294400,0.92404022,3277.3,3276.0,3.61172832]
[1768583294702,0.92404022,3277.2,3276.0,3.61172832]
[1768583294898,0.00993734,3277.4,3275.1,40.8]
[1768583294899,3.35006538,3277.4,3275.4,3.61172832]
[1768583295201,3.34012804,3277.1,3275.4,3.61172832]
[1768583295401,0.92399251,3277.0,3275.4,3.76442832]
[1768583295602,0.92399251,3276.9,3275.4,3.76442832]
[1768583295792,0.92399251,3276.8,3275.4,3.76442832]
[1768583295989,3.34012804,3277.2,3275.4,3.76442832]
[1768583296193,0.92403429,3277.1,3275.4,3.76442832]
[1768583296393,0.92403429,3277.0,3275.4,3.76442832]
[1768583296603,0.92403429,3276.9,3275.4,3.76442832]
[1768583296802,0.92403429,3276.8,3275.4,3.76442832]
[1768583297001,3.34012804,3277.0,3275.4,0.1527]
[1768583297210,0.92418775,3276.9,3275.4,0.1527]
[1768583297500,0.92418775,3276.8,3275.4,0.1527]
[1768583299595,3.35006538,3277.4,3275.6,3.61172832]
[1768583299795,0.9242616,3277.3,3275.6,3.61172832]
[1768583299998,0.9242616,3277.2,3275.6,3.61172832]
[1768583300200,0.9242616,3277.1,3275.6,3.61172832]
[1768583300396,0.9242616,3277.0,3275.6,3.61172832]
[1768583300596,0.9242616,3276.9,3275.6,3.61172832]
[1768583300797,0.00993734,3277.4,3275.6,3.61172832]
[1768583301005,0.92426351,3277.3,3275.6,3.61172832]
[1768583301304,0.92426351,3277.2,3275.6,3.61172832]
[1768583301505,0.92426351,3277.1,3275.6,3.61172832]
[1768583301809,0.92426351,3277.0,3275.6,3.61172832]
[1768583301996,0.92426351,3276.9,3275.6,3.61172832]
[1768583302294,0.92426351,3276.8,3275.6,3.61172832]
[1768583302609,3.59907672,3277.3,3275.6,3.61172832]
[1768583302797,0.92437605,3277.2,3275.6,3.61172832]
[1768583302999,0.92437605,3277.1,3275.6,3.61172832]
[1768583303196,0.92437605,3277.0,3275.6,3.61172832]
[1768583303397,0.92437605,3276.9,3275.6,3.61172832]
[1768583303706,0.92437605,3276.8,3275.6,3.61172832]
[1768583303905,3.59907672,3277.3,3275.5,0.1527]
[1768583304106,0.92436664,3277.2,3275.5,0.1527]
[1768583304308,0.92436664,3277.1,3275.5,0.1527]
[1768583304602,0.92436664,3277.0,3275.3,3.49364921]
[1768583304804,0.92436664,3276.9,3275.3,3.49364921]
[1768583305005,0.92436664,3276.8,3275.3,3.49364921]
[1768583305205,3.59907672,3277.1,3275.3,3.49364921]
[1768583305206,0.92436949,3276.7,3275.3,3.49364921]
[1768583305406,0.92436949,3276.6,3275.3,3.49364921]
[1768583305605,3.59907672,3277.1,3275.3,3.49364921]
[1768583305804,0.92438755,3277.0,3275.3,3.49364921]
[1768583306005,0.92438755,3276.9,3275.3,3.49364921]
[1768583306206,0.92438755,3276.8,3275.3,3.49364921]
[1768583306406,0.92438755,3276.7,3275.3,3.49364921]
[1768583306606,0.92438755,3276.6,3275.3,3.49364921]
[1768583306807,3.59907672,3277.1,3275.3,3.49364921]
[1768583307011,0.92458125,3277.0,3275.3,3.49364921]
[1768583307207,0.92458125,3276.9,3275.3,3.49364921]
[1768583307409,0.92458125,3276.8,3275.3,3.49364921]
[1768583307608,0.92458125,3276.7,3275.3,3.49364921]
[1768583307813,0.92458125,3276.6,3275.3,3.49364921]
[1768583308006,0.15262,3277.2,3275.3,3.49364921]
[1768583308208,0.92431025,3277.1,3275.3,3.49364921]
[1768583308404,0.92431025,3277.0,3275.3,3.49364921]
[1768583308608,0.92431025,3276.9,3275.3,3.49364921]
[1768583308807,0.92431025,3276.8,3275.3,3.49364921]
[1768583309111,0.92431025,3276.7,3275.3,3.49364921]
[1768583309309,0.15262,3277.2,3275.3,3.49364921]
[1768583309614,0.92443411,3277.1,3275.3,3.49364921]
[1768583309805,0.92443411,3277.0,3275.3,3.49364921]
[1768583310007,0.92443411,3276.9,3275.3,3.49364921]
[1768583310216,0.92443411,3276.8,3275.3,3.49364921]
[1768583310414,0.92443411,3276.7,3275.3,3.49364921]
[1768583310608,0.92443411,3276.6,3275.3,3.49364921]
[1768583310810,3.75359047,3277.2,3275.3,3.49364921]
[1768583311013,0.92449763,3277.1,3275.3,3.49364921]
[1768583311214,0.92449763,3277.0,3275.3,3.49364921]
[1768583311415,0.92449763,3276.9,3275.3,3.49364921]
[1768583311717,0.92449763,3276.8,3275.3,3.49364921]
[1768583311921,0.92449763,3276.7,3275.3,3.49364921]
[1768583312218,0.92449763,3276.6,3275.3,3.49364921]
[1768583312405,3.60097047,3277.1,3275.3,3.49364921]
[1768583312607,0.92454168,3277.0,3275.3,3.49364921]
[1768583312817,0.92454168,3276.9,3275.3,3.49364921]
[1768583313121,0.15262,3277.2,3275.3,3.49364921]
[1768583313122,0.92454168,3276.8,3275.3,3.49364921]
[1768583313322,0.92454168,3276.7,3275.3,3.49364921]
[1768583313615,0.92454168,3276.6,3275.2,0.15271]
[1768583313920,0.92454168,3276.5,3275.2,0.15271]
[1768583314116,3.60097047,3277.0,3275.2,0.15271]
[1768583314318,4.52539961,3276.9,3274.8,3.33084428]
[1768583314523,0.92442914,3276.8,3274.8,3.33084428]
[1768583314725,0.92442914,3276.7,3274.8,3.33084428]
[1768583314930,0.92442914,3276.6,3274.8,3.33084428]
[1768583315227,0.92442914,3276.5,3274.8,3.33084428]
[1768583315432,0.92442914,3276.4,3274.8,3.33084428]
[1768583315623,3.60097047,3276.9,3274.8,3.33084428]
[1768583315825,0.92399177,3276.8,3274.8,3.33084428]
[1768583316028,0.92399177,3276.7,3274.8,3.33084428]
[1768583316331,0.92399177,3276.6,3274.8,3.33084428]
[1768583316529,0.92399177,3276.5,3274.8,3.33084428]
[1768583316825,0.92399177,3276.4,3274.8,3.33084428]
[1768583317032,3.75360047,3276.9,3274.8,3.33084428]
[1768583317220,0.92387396,3276.8,3274.8,3.33084428]
[1768583317418,0.92387396,3276.7,3274.8,3.33084428]
[1768583317617,0.92387396,3276.6,3274.8,3.33084428]
[1768583317830,0.92387396,3276.5,3274.8,3.33084428]
[1768583318031,0.92387396,3276.4,3274.8,3.33084428]
[1768583318231,3.75360047,3276.9,3274.8,3.33084428]
[1768583318423,0.92380868,3276.8,3274.8,3.33084428]
[1768583318622,0.92380868,3276.7,3274.8,3.33084428]
[1768583318825,4.52477915,3276.6,3274.8,3.33084428]
[1768583319023,4.52477915,3276.5,3274.8,3.33084428]
[1768583319328,0.92380868,3276.4,3274.8,3.33084428]
[1768583322532,4.52477915,3276.4,3274.8,3.33084428]
[1768583322731,4.52477915,3276.3,3274.4,3.33084428]
[1768583322932,0.92380868,3276.2,3274.4,3.33084428]
[1768583323125,0.92380868,3276.2,3274.6,3.33084428]
[1768583324937,0.92380868,3276.1,3274.6,3.33084428]
[1768583325237,0.92380868,3276.0,3274.6,3.33084428]
[1768583325430,0.15265,3276.5,3274.6,3.33084428]
[1768583325631,0.92526216,3276.4,3274.6,3.33084428]
[1768583325831,0.92526216,3276.3,3274.6,3.33084428]
[1768583326034,0.92526216,3276.2,3274.6,3.33084428]
[1768583326228,0.92526216,3276.1,3274.6,3.33084428]
[1768583326432,0.92526216,3276.0,3274.6,3.33084428]
[1768583326635,0.15265,3276.5,3274.6,3.33084428]
[1768583326931,0.92514537,3276.4,3274.6,3.33084428]
[1768583327131,0.92514537,3276.3,3274.6,3.33084428]
[1768583327337,0.92514537,3276.2,3274.6,3.33084428]
[1768583327537,0.92514537,3276.1,3274.6,3.33084428]
[1768583327736,0.92514537,3276.0,3274.6,3.33084428]
[1768583327942,0.15265,3276.5,3274.6,3.33084428]
[1768583328129,0.9250657,3276.4,3274.6,3.33084428]
[1768583328436,0.9250657,3276.3,3274.6,3.33084428]
[1768583328637,0.9250657,3276.2,3274.6,3.33084428]
[1768583328840,0.9250657,3276.1,3274.6,3.33084428]
[1768583329142,0.15265,3276.5,3274.6,3.33084428]
[1768583329335,0.92492788,3276.4,3274.6,3.33084428]
[1768583329534,0.92492788,3276.3,3274.6,3.33084428]
[1768583329736,0.92492788,3276.2,3274.6,3.33084428]
[1768583330039,0.92492788,3276.1,3274.6,3.33084428]
[1768583330233,0.92492788,3276.0,3274.6,3.33084428]
[1768583330433,0.92492788,3275.9,3274.6,3.33084428]
[1768583330634,4.844679,3276.3,3274.6,3.33084428]
[1768583330829,0.92485669,3276.2,3274.6,3.33084428]
[1768583331034,1.24370853,3275.9,3274.1,3.33084428]
[1768583331226,0.92485669,3275.8,3274.1,3.33084428]
[1768583331433,0.92485669,3275.7,3274.3,3.58176146]
[1768583331632,3.60097047,3276.1,3274.3,3.58176146]
[1768583331832,0.92463926,3276.0,3274.3,3.58176146]
[1768583332135,0.92463926,3275.9,3274.3,3.58176146]
[1768583332340,0.92463926,3275.8,3274.3,3.58176146]
[1768583332542,0.92463926,3275.7,3274.3,3.58176146]
[1768583332743,3.60097047,3276.1,3274.3,3.58176146]
[1768583333043,0.92449708,3276.0,3274.3,3.58176146]
[1768583333243,0.92449708,3275.9,3274.3,3.58176146]
[1768583333445,0.92449708,3275.8,3274.3,3.58176146]
[1768583333646,0.92449708,3275.7,3274.3,3.58176146]
[1768583333945,3.60097047,3276.1,3274.3,3.58176146]
[1768583334146,0.92438895,3276.0,3274.3,3.58176146]
[1768583334348,0.92438895,3275.9,3274.3,3.58176146]
[1768583334643,0.92438895,3275.8,3274.3,3.58176146]
[1768583334842,3.60097047,3276.1,3274.3,3.58176146]
[1768583334843,0.92438895,3275.7,3274.3,3.58176146]
[1768583335039,0.92438895,3275.6,3274.3,3.58176146]
[1768583335239,3.51858619,3276.0,3274.3,3.58176146]
[1768583335442,4.44279463,3275.9,3274.3,3.58176146]
[1768583335642,0.15269,3275.7,3273.8,3.58470214]
[1768583335842,0.92419844,3275.6,3273.8,3.58470214]
[1768583336042,0.92419844,3275.5,3273.8,3.58470214]
[1768583336242,0.15269,3275.6,3273.8,3.58470214]
[1768583336551,0.92392171,3275.5,3273.8,3.58470214]
[1768583336843,0.92392171,3275.4,3273.8,3.58470214]
[1768583337144,0.92392171,3275.3,3273.8,3.58470214]
[1768583337448,0.15269,3275.6,3273.8,3.58470214]
[1768583337648,0.92358874,3275.5,3273.8,3.58470214]
[1768583337847,0.92358874,3275.4,3273.8,3.58470214]
[1768583338048,0.92358874,3275.3,3273.8,3.58470214]
[1768583338249,0.15269,3275.6,3273.8,3.58470214]
[1768583338449,0.92340578,3275.5,3273.8,3.58470214]
[1768583338653,0.92340578,3275.4,3273.8,3.58470214]
[1768583338854,0.15269,3275.6,3273.8,3.58470214]
[1768583339155,0.92340415,3275.5,3273.8,3.58470214]
[1768583339453,0.92340415,3275.4,3273.8,3.58470214]
[1768583339654,0.15269,3275.6,3273.8,3.58470214]
[1768583339855,0.92335172,3275.5,3273.8,3.58470214]
[1768583340052,0.92335172,3275.4,3273.8,3.58470214]
[1768583340253,0.15269,3275.6,3273.8,3.58470214]
[1768583340447,0.92342769,3275.5,3273.8,3.58470214]
[1768583340646,0.92342769,3275.4,3273.8,3.73748214]
[1768583340842,3.51857619,3276.2,3274.6,3.58176146]
[1768583341046,0.92334869,3276.1,3274.6,3.58176146]
[1768583341253,0.92334869,3276.0,3274.6,3.58176146]
[1768583341448,0.92334869,3275.9,3274.6,3.58176146]
[1768583341648,0.92334869,3275.8,3274.6,3.58176146]
[1768583341847,0.92334869,3275.7,3274.6,3.58176146]
[1768583342046,1.87566,3276.2,3274.6,3.58176146]